Cogmind - Beta 14 @@@ ROGUE MODE // 2024.09.10 @ 01:08:02 Player: THN-L0C Result: Destroyed by H-88 Terminator with Heavy Machine Gun Performance ------------- Evolutions (9) 4500 Regions Visited (23) 4600 Robots Destroyed (202) 1010 Value Destroyed (10200) 10200 Prototype IDs (54) 1080 Alien Tech Used (8) 1600 Bonus (5271) 5271 TOTAL SCORE: 28261 Bonus ------- High Alert Combat Kills 1186 Follower Combat Kills 2642 Network Hubs Disabled 400 Registered with UFD 300 Met Zhirov 300 Built Enhanced Grunts 300 A7 Reached Mainframe 300 Met R17 at Cetus 500 Met R17 at Research 2000 Friendly Fire -2657 Cogmind --------- Core Integrity 0/1600 Matter 163/300 Energy 88/100 System Corruption 1% Temperature Cool (1) Movement Flying (20) Location -1/Access Parts ------- > --- POWER (3) -------- (None) > --- PROPULSION (8) --- Experimental Q-thruster > --- UTILITY (10) ----- Advanced Targeting Computer Advanced Target Analyzer Core Analyzer > --- WEAPON (4) ------- (None) > --- INVENTORY (5) ---- Quantum Reactor Reinforced Quantum Reactor Advanced Power Amplifier Stasis Canceller Peak State ------------ > --- POWER ------------ Antimatter Reactor Micro Antimatter Reactor Micro Antimatter Reactor > --- PROPULSION ------- Improved Antigrav System Improved Antigrav System Improved Linear Gravjet Improved Linear Gravjet Antigrav Array > --- UTILITY ---------- Advanced Coolant Injector Large Storage Unit Advanced Energy Well Deep Structural Scanner Advanced Target Analyzer Advanced Target Analyzer Advanced Target Analyzer Core Analyzer Advanced Transmission Jammer Layered Medium Armor Plating > --- WEAPON ----------- Core Stripper Plasma Sword Vibroblade > --- INVENTORY -------- Improved Antigrav System Improved Antigrav System Improved Matter Compressor Stealth Drone Bay High-powered Transdimensional Reconstructor Terrabomb Terrabomb Linear Accelerator Gamma Bomb Array Sigix Broadsword Sigix Broadsword [Rating: 182] Favorites ----------- Power Neutrino Core Engine Light Ion Engine Power Core Neutrino Core Reactor Antimatter Reactor Propulsion Overtuned Huge Scrapsphere Treads Improved Treads Leg Advanced Myomer Leg Wheel Overtuned Huge Scrapsphere Hover Unit Improved Antigrav System Flight Unit Experimental Q-thruster Utility Humpback Device Scrap Suit Storage Humpback Processor Surveybot 17 Chip Hackware Improved Hacking Suite Protection Hardened Heavy Armor Plating Weapon Overtuned Beamcaster Energy Gun Overtuned Beamcaster Energy Cannon Powered Cannon Ballistic Gun Shotgun Ballistic Cannon Battle Cannon Launcher Heavy Rocket Launcher Special Weapon Remote Datajack Impact Weapon Hammer Slashing Weapon Power Sword Piercing Weapon Lance Build | -11 -10 -10 -9 -9 -6 -6 -6 -6 -5 -5 -5 -5 -5 -4 -4 -4 -4 -4 -4 -3 -3 -2 -1 ------- Run | Yrd Mat Sub Rec Scr Fac Low Low Zio Pro Fac Upp Upp Zhi Pro Fac Ext Cet Arc Hub Res Qua Res Acc Slots Evolved 18 | . . . . . 8 . . . . 2 . . . . 2 . . . . 2 . 2 2 Power 2 | . . . . . . . . . . . . . . . 1 . . . . . . 1 . Propulsion 6 | . . . . . 2 . . . . . . . . . . . . . . 2 . . 2 Utility 8 | . . . . . 5 . . . . 2 . . . . 1 . . . . . . . . Weapon 2 | . . . . . 1 . . . . . . . . . . . . . . . . 1 . Parts Attached 347 | 9 14 28 3 20 6 5 2 3 1 3 . 7 18 15 14 29 9 7 30 22 43 16 43 Power 39 | 2 . 1 . 3 1 . . 1 . . . . . 4 2 2 2 . 2 3 3 2 11 Engine 4 | 2 . 1 . 1 . . . . . . . . . . . . . . . . . . . Core 5 | . . . . 2 1 . . 1 . . . . . 1 . . . . . . . . . Reactor 30 | . . . . . . . . . . . . . . 3 2 2 2 . 2 3 3 2 11 Propulsion 61 | 2 2 2 1 4 1 . . . . . . . 2 . . 2 . 1 . 3 20 2 19 Treads 15 | 2 2 2 . 2 . . . . . . . . . . . . . . . 2 3 . 2 Leg 1 | . . . . . . . . . . . . . 1 . . . . . . . . . . Wheel 12 | . . . 1 2 1 . . . . . . . 1 . . 2 . 1 . 1 3 . . Hover 30 | . . . . . . . . . . . . . . . . . . . . . 14 2 14 Flight 3 | . . . . . . . . . . . . . . . . . . . . . . . 3 Utility 146 | 2 10 11 . 5 3 . . 1 . 3 . 5 12 9 5 9 4 4 21 10 16 8 8 Device 85 | 1 4 5 . 1 2 . . 1 . . . 4 8 6 5 8 3 4 12 6 7 5 3 Storage 11 | 1 1 1 . 3 . . . . . . . . 2 . . . . . 1 2 . . . Processor 12 | . . 1 . 1 . . . . . 1 . 1 . . . . . . . . 6 . 2 Hackware 6 | . 1 . . . . . . . . 2 . . . . . . . . 3 . . . . Protection 32 | . 4 4 . . 1 . . . . . . . 2 3 . 1 1 . 5 2 3 3 3 Artifact . | . . . . . . . . . . . . . . . . . . . . . . . . Weapon 101 | 3 2 14 2 8 1 5 2 1 1 . . 2 4 2 7 16 3 2 7 6 4 4 5 Energy Gun 14 | . . . . 3 . . 1 . . . . . . 1 2 . . 1 4 . 1 . 1 Energy Cannon 7 | . . . . . 1 . . . . . . . . . . 4 1 . . 1 . . . Ballistic Gun 23 | 3 2 6 1 . . . . . . . . . . . 1 2 2 1 1 3 1 . . Ballistic Cannon 8 | . . . 1 . . . . . . . . . . . 1 4 . . . . . 2 . Launcher 9 | . . 3 . . . . . 1 . . . 1 . 1 . . . . . 1 . . 2 Special Weapon 12 | . . . . 4 . 3 . . . . . . 2 . . 3 . . . . . . . Impact Weapon 7 | . . 5 . 1 . . . . . . . . . . . . . . . . 1 . . Slashing Weapon 20 | . . . . . . 2 1 . 1 . . 1 2 . 2 3 . . 2 1 1 2 2 Piercing Weapon 1 | . . . . . . . . . . . . . . . 1 . . . . . . . . Special Melee Weapon . | . . . . . . . . . . . . . . . . . . . . . . . . Unidentified Prototypes 29 | . . . . . . . . . . . . . 5 . . 2 3 . 3 2 5 5 4 Corrupted Parts 6 | . . . . . . . . . . . . . . 3 . . . 1 . 2 . . . System Corruption 28 | . . . . . . . . . . . . . . 17 . . . 4 . 7 . . . Parts Lost 71 | . . 2 . . . . . . . . . . . 6 1 3 . . 5 7 10 2 35 Power 8 | . . . . . . . . . . . . . . 3 . . . . . . . . 5 Propulsion 17 | . . . . . . . . . . . . . . . . . . . . . 3 . 14 Utility 31 | . . 1 . . . . . . . . . . . 3 . 3 . . 5 5 4 1 9 Weapon 15 | . . 1 . . . . . . . . . . . . 1 . . . . 2 3 1 7 Highest Loss Streak 24 | . . 2 . . . . . . . . . . . 3 1 2 . . 2 2 4 2 24 To Critical Strikes 1 | . . . . . . . . . . . . . . . . . . . . . 1 . . Average Slot Usage (%) 74 | . 99 95 85 74 60 61 62 62 62 64 66 66 65 63 72 73 73 73 75 75 81 92 54 Engine 3 | . 14 14 14 3 . . . . . . . . . . . . . . . . . . . Core 7 | . . . . 10 11 12 12 12 12 11 11 11 11 4 . . . . . . . . . Reactor 1 | . . . . . . . . . . . . . . 1 10 10 10 10 10 9 9 11 6 Treads 5 | . 28 28 18 3 . . . . . . . . . . . . . . . 2 5 . . Wheel 10 | . . . 9 13 12 12 12 12 12 11 11 11 10 11 10 10 10 10 10 8 3 . . Device 6 | . 12 6 . . 11 12 12 12 12 11 11 15 15 13 15 20 20 21 13 22 22 13 5 Storage 10 | . 14 14 14 13 6 6 6 6 6 5 5 5 5 5 5 5 5 5 4 7 9 8 4 Processor 1 | . . 2 . . . . . . . 2 5 5 5 5 5 5 5 5 5 4 7 16 12 Protection 2 | . 1 . . . 5 6 6 6 6 5 5 5 5 8 10 5 5 5 6 5 2 3 2 Energy Gun 11 | . . . . 21 . . 2 . . . . . . . 8 10 10 11 10 3 . . . Energy Cannon 1 | . . . . . 5 6 6 6 6 5 5 5 5 5 . . . . . . . . . Ballistic Gun 3 | . 28 16 14 2 . . . . . . . . . . 1 . 4 3 1 5 4 . . Ballistic Cannon 1 | . . . 13 2 . . . . . . . . . . . 2 . . . . . 3 . Slashing Weapon 1 | . . . . . 5 5 3 5 . 5 5 3 4 . 1 2 . . 2 1 5 11 5 Peak Build Rating 182 | 7 15 16 17 47 90 92 93 92 93 100 101 107 112 110 118 126 134 134 139 156 176 182 182 Average Rating 63 | 5 12 13 16 37 87 91 92 91 92 98 100 105 107 102 115 123 128 131 131 136 158 169 103 On Entrance 90 | . 7 13 14 17 47 90 92 92 92 93 100 101 106 108 106 118 124 134 131 128 147 171 150 Naked Turns 69 | . . . . 69 . . . . . . . . . . . . . . . . . . . Heaviest Build 287 | 14 34 208 208 224 266 266 268 270 270 266 266 273 269 272 284 287 276 270 283 112 103 92 97 Greatest Support 150 | 40 46 46 46 23 40 40 40 40 40 40 40 40 40 40 40 40 40 40 40 60 150 73 98 Greatest Overweight (x) 74 | . . 4 17 74 6 6 6 6 6 6 6 6 13 6 7 7 6 6 7 4 5 1 2 Average Overweight (x) 7 | . . . 13 23 5 6 6 6 6 6 6 6 6 6 6 6 6 6 4 2 2 . . Largest Inventory Capacity 35 | 8 15 35 35 35 35 35 35 35 35 35 35 35 35 35 35 35 35 35 35 15 15 15 15 Average Capacity 31 | 7 14 20 35 33 35 35 35 35 35 35 35 35 35 35 35 35 35 35 28 15 15 15 10 Most Carried 35 | 4 15 19 28 35 33 35 35 35 35 35 35 35 35 35 35 35 35 35 35 15 15 15 15 Average Carried 26 | 1 14 15 26 25 29 34 34 34 35 34 34 34 34 34 33 34 34 34 27 14 14 14 9 Final Capacity 35 | 8 15 35 35 35 35 35 35 35 35 35 35 35 35 35 35 35 35 35 15 15 15 15 5 Final Carried 35 | 4 15 19 28 35 32 35 35 35 35 34 35 35 35 34 35 34 35 35 15 15 15 15 4 Class Distribution -------------------- 47% | Commander-Mutant 23% | Hauler-Scrapper 9% | Mutant 7% | Scavenger-Scrapper 4% | Hauler-Mutant 3% | Scavenger-Mutant Dominant Class ---------------- Mutant | -10/Materials Mutant | -10/Subcaves Commander-Mutant | -9/Recycling Commander-Mutant | -9/Scraptown Hauler-Scrapper | -6/Factory Hauler-Scrapper | -6/Lower Caves Hauler-Scrapper | -6/Lower Caves Hauler-Scrapper | -6/Zion Hauler-Scrapper | -5/Proximity Caves Hauler-Scrapper | -5/Factory Hauler-Scrapper | -5/Upper Caves Hauler-Scrapper | -5/Upper Caves Hauler-Scrapper | -5/Zhirov Hauler-Scrapper | -4/Proximity Caves Scavenger-Scrapper | -4/Factory Commander-Scrapper | -4/Extension Scavenger-Scrapper | -4/Cetus Scavenger-Scrapper | -4/Archives Scavenger-Scrapper | -4/Hub_04(d) Scavenger-Mutant | -3/Research Scavenger-Mutant | -3/Quarantine Scavenger-Mutant | -2/Research Mutant | -1/Access Resources | -11 -10 -10 -9 -9 -6 -6 -6 -6 -5 -5 -5 -5 -5 -4 -4 -4 -4 -4 -4 -3 -3 -2 -1 ----------- Run | Yrd Mat Sub Rec Scr Fac Low Low Zio Pro Fac Upp Upp Zhi Pro Fac Ext Cet Arc Hub Res Qua Res Acc Matter Collected 9754 | 267 349 1014 673 2491 60 50 20 30 84 40 . 112 480 306 23 801 196 103 377 366 1490 171 251 Remotely . | . . . . . . . . . . . . . . . . . . . . . . . . Salvage Created 11061 | 30 349 430 140 346 292 30 359 . 195 162 . 126 379 1381 95 1992 492 486 629 1014 1746 76 312 Parts 471 | 4 20 39 7 22 5 4 12 . 6 9 . 5 14 49 3 68 11 16 29 44 85 3 16 Haulers Intercepted 2 | . . . . . . . . . . . . . . . . . . . 1 . 1 . . Recyclers Shooed 1 | 1 . . . . . . . . . . . . . . . . . . . . . . . Parts Field Recycled . | . . . . . . . . . . . . . . . . . . . . . . . . Retrieved Matter . | . . . . . . . . . . . . . . . . . . . . . . . . Parts Self-Destructed 99 | . . 19 . . . 8 6 . 7 . . 11 10 38 . . . . . . . . . Prevented 22 | . . . . . . . . 4 4 . . 4 . 10 . . . . . . . . . Kills | -11 -10 -10 -9 -9 -6 -6 -6 -6 -5 -5 -5 -5 -5 -4 -4 -4 -4 -4 -4 -3 -3 -2 -1 ------- Run | Yrd Mat Sub Rec Scr Fac Low Low Zio Pro Fac Upp Upp Zhi Pro Fac Ext Cet Arc Hub Res Qua Res Acc Combat Hostiles Destroyed 162 | . 7 16 3 . 5 . 2 . 7 2 . 4 . 29 2 19 6 2 9 20 22 . 7 Melee 12 | . . . . . . . 1 . . . . . . . . 2 . . 1 . 7 . 1 Guns 56 | . 7 8 1 . . . . . . . . . . . 2 7 5 2 8 3 12 . 1 Cannons 34 | . . . 2 . 3 . 1 . 3 1 . 2 . 13 . 9 . . . . . . . AOE 48 | . . 8 . . 1 . . . 4 . . 2 . 12 . . . . . 15 1 . 5 Classes Destroyed 23 | 1 4 4 1 1 2 1 1 . . . . . . 2 . 5 . . 1 . . . . Worker 3 | . . . . . . . . . . . . . . . . . . . . 2 1 . . Builder 2 | . 1 . . . . . . . . . . . . . . . . . . . 1 . . Tunneler 1 | 1 . . . . . . . . . . . . . . . . . . . . . . . Hauler 2 | . . . . . . . . . . . . . . . . . . . 1 . 1 . . Recycler 3 | . 1 . . . . . . . . . . . . . . 2 . . . . . . . Minesweeper 1 | . . . . . . 1 . . . . . . . . . . . . . . . . . Mechanic 2 | . . . . . . . . . . . . . . . . 2 . . . . . . . Operator 13 | . 1 . . . . . . . . 1 . . . . . 2 . 9 . . . . . Watcher 5 | . . . . . . . . . . . . . . . . 1 1 . . . 1 2 . Swarmer 45 | . . 5 . . . . 1 . 3 . . 4 . 9 . . . . 2 15 . . 6 Saboteur 1 | . . . . . . . . . . . . . . . . 1 . . . . . . . Grunt 45 | . 7 . 1 . 2 . . . 3 1 . . . 9 . 7 1 . 1 1 12 . . Brawler 3 | . . . . . 1 . . . 1 . . . . 1 . . . . . . . . . Duelist 5 | . . . . . . . . . . . . . . 5 . . . . . . . . . Protector 1 | . . . . . . . . . . . . . . 1 . . . . . . . . . Sentry 18 | . . 1 1 . 1 . . . . 1 . . . 2 . 6 . 2 2 2 . . . Specialist 2 | . . . . . . . . . . . . . . . . 2 . . . . . . . Hunter 13 | . . . . . 1 . 1 . . . . . . 2 2 . . . 2 2 2 . 1 Programmer 11 | . . . 1 . . . . . . . . . . . . . . . 2 . 8 . . Behemoth 1 | . . . . . . . . . . . . . . . . 1 . . . . . . . Cetus Guard 5 | . . . . . . . . . . . . . . . . . 5 . . . . . . Artisan 2 | . . 2 . . . . . . . . . . . . . . . . . . . . . Subdweller 10 | . . 10 . . . . . . . . . . . . . . . . . . . . . Scrapoid 8 | . . . . 5 . . . . . . . . . . . 3 . . . . . . . Decomposer 1 | . . . . . . . 1 . . . . . . . . . . . . . . . . Packrat 1 | . . . . . . . . . . . . 1 . . . . . . . . . . . Thug 2 | . . . . . . . . . . . . . . . . 2 . . . . . . . Best Kill Streak 11 | 1 3 4 2 . 2 1 1 . 6 1 . 3 . 11 2 3 4 2 2 10 4 1 6 Combat Bots Only 11 | . 2 4 2 . 2 . 1 . 6 1 . 3 . 11 2 3 4 1 2 10 4 . 6 Max Kills in Single Turn 4 | 1 1 4 1 1 1 1 1 . 2 1 . 2 . 3 1 2 1 2 1 4 1 1 2 Gunslinging . | . . . . . . . . . . . . . . . . . . . . . . . . Exploded 4 | . . 4 . . 1 . . . 1 . . 2 . 3 . . . . . 4 1 . 2 Melee 1 | . . . . . . . 1 . . . . . . . . 1 . . 1 . 1 . 1 Uniques/NPCs Destroyed . | . . . . . . . . . . . . . . . . . . . . . . . . Combat | -11 -10 -10 -9 -9 -6 -6 -6 -6 -5 -5 -5 -5 -5 -4 -4 -4 -4 -4 -4 -3 -3 -2 -1 -------- Run | Yrd Mat Sub Rec Scr Fac Low Low Zio Pro Fac Upp Upp Zhi Pro Fac Ext Cet Arc Hub Res Qua Res Acc Hostile Shots Fired 1774 | . 26 54 11 . 70 . 6 . 13 14 . 20 . 153 64 92 22 4 180 116 433 23 473 Missed 644 | . 2 17 4 . 30 . . . 5 3 . 8 . 52 26 27 7 2 49 44 158 9 201 Damage Taken 20110 | . 321 578 90 . 464 20 89 . 133 226 . 211 . 2007 519 1322 309 85 2427 1358 3684 417 5850 Core 3030 | . 38 93 . . . 20 20 . . . . 14 . 183 98 129 59 . 168 117 376 103 1612 Absorbed by Shields 1926 | . . . . . 13 . . . . . . . . . 184 . 133 . 242 47 1307 . . Reduced by Siege Mode 208 | . . . . . . . . . . . . . . . . . . . . . . . 208 Redirected to Shielding 111 | . . . . . . . . . . . . . . 111 . . . . . . . . . Ignored by Resistances 795 | . . . . . . . . . . . . . . . . 66 35 16 221 . 457 . . Regen/Repaired (Parts) 1559 | . 30 . . . . 72 10 623 . . . . 11 26 10 90 70 74 98 37 400 . 8 Core Remaining (%) 72 | 100 . . . 47 . . . . 95 . . . . 80 . . . . 60 . 42 84 . Volleys Fired 550 | 3 23 31 6 15 20 7 4 9 7 6 9 14 2 92 15 81 21 36 28 36 65 . 20 Largest 3 | 2 2 2 2 1 1 1 1 1 2 1 1 1 1 2 3 3 3 3 3 3 2 . 1 Hottest 305 | 40 46 46 64 5 40 40 40 40 79 40 40 40 . 159 232 305 305 235 195 265 110 . 80 Shots Fired 949 | 6 46 53 12 15 20 7 4 9 13 6 9 14 2 101 28 184 63 81 65 64 127 . 20 Gun 644 | 6 46 45 6 . . . . . . . . . . . 20 124 61 81 65 49 127 . 14 Cannon 231 | . . . 6 . 20 2 4 9 7 6 9 11 . 87 8 58 2 . . 2 . . . Launcher 50 | . . 8 . . . . . . 6 . . 3 . 14 . . . . . 13 . . 6 Special 24 | . . . . 15 . 5 . . . . . . 2 . . 2 . . . . . . . Kinetic 374 | 6 46 45 12 . . . . . . . . . . . 10 45 19 9 11 45 126 . . Thermal 493 | . . . . . 20 2 4 9 7 6 9 11 . 87 18 130 44 72 54 6 . . 14 Explosive 31 | . . 8 . . . . . . 6 . . 3 . 14 . . . . . . . . . Electromagnetic 27 | . . . . . . . . . . . . . . . . 7 . . . 13 1 . 6 Robot Hit Streak 19 | 2 9 11 18 6 4 1 3 4 5 4 . 4 6 15 9 15 19 9 7 12 10 . 11 Robot Miss Streak 5 | 2 3 5 1 1 2 3 . 2 4 1 . 2 . 5 4 5 2 4 3 4 4 . 2 Penetration Max 1 | . . . . . . . . . . . . . . . . 1 1 1 . 1 1 . . Secondary Targets 8 | . 2 . . . . . . . . . . . . . 1 . 1 . 2 . 2 . . Max Gunslinging Chain 1 | . 1 . . . . . . . . . . . . . 1 . 1 . 1 . 1 . . Shots Hit Robots 652 | 2 37 41 11 23 9 3 15 4 5 5 . 4 11 66 12 105 44 46 49 38 97 9 16 Core Hits 355 | 2 21 30 4 1 2 1 7 1 14 2 . 6 5 48 4 52 14 20 21 35 43 3 19 Critical Kills 29 | . 1 1 . . 1 . . . . 1 . . . 4 . 9 1 2 1 1 7 . . Critical Parts Destroyed 28 | . 1 . . 4 . . . . . . . . . . . 8 2 . 1 4 8 . . Critical Strikes 95 | . 2 1 . 4 1 . . . . 1 . . . 4 2 34 8 10 4 5 19 . . Burn 24 | . . . . . . . . . . . . . . . 2 10 4 8 . . . . . Meltdown 6 | . . . . . 1 . . . . 1 . . . 4 . . . . . . . . . Destroy 53 | . 2 1 . . . . . . . . . . . . . 22 4 2 2 5 15 . . Blast 2 | . . . . . . . . . . . . . . . . 2 . . . . . . . Smash 4 | . . . . 4 . . . . . . . . . . . . . . . . . . . Sever 6 | . . . . . . . . . . . . . . . . . . . 2 . 4 . . Melee Attacks 204 | . . 56 1 11 1 . 17 1 . . . . 9 1 1 8 . . 21 5 44 10 18 Kinetic 3 | . . . . . . . . . . . . . . . . . . . . . 3 . . Impact 68 | . . 56 1 11 . . . . . . . . . . . . . . . . . . . Slashing 133 | . . . . . 1 . 17 1 . . . . 9 1 1 8 . . 21 5 41 10 18 Piercing . | . . . . . . . . . . . . . . . . . . . . . . . . Sneak Attacks 23 | . . 3 1 11 . . 2 . . . . . . . . 2 . . . . 4 . . Combat Hostiles 2 | . . . . . . . 1 . . . . . . . . . . . . . 1 . . Follow-up Attacks 6 | . . . . . . . . . . . . . . . . . . . . . 3 3 . Damage Inflicted 27882 | 27 637 1337 251 837 559 123 1113 218 605 251 . 458 734 4531 468 3249 1515 1297 1728 2405 4169 463 907 Guns 11505 | 18 633 559 83 . . . . . . . . . . . 281 2293 1470 1297 1372 888 2244 . 367 Cannons 5703 | . . . 114 . 559 123 100 218 263 251 . 174 . 3072 49 700 45 . . 35 . . . Explosions 4935 | . . 642 . . . . . . 342 . . 284 . 1459 138 . . . . 1482 245 . 343 Melee 5724 | . . 136 52 837 . . 1013 . . . . . 734 . . 256 . . 356 . 1680 463 197 Ramming 15 | 9 4 . 2 . . . . . . . . . . . . . . . . . . . . Kinetic 6086 | 18 633 559 197 . . . . . . . . . . . 70 620 456 224 259 783 2267 . . Thermal 11613 | . . . . . 559 123 100 218 263 251 . 174 . 3072 260 2373 1059 1073 1113 588 . . 387 Explosive 3110 | . . 642 . . . . . . 342 . . 284 . 1459 138 . . . . . 245 . . Electromagnetic 1387 | . . . . . . . . . . . . . . . . . . . . 1034 30 . 323 Impact 1025 | . . 136 52 837 . . . . . . . . . . . . . . . . . . . Slashing 4646 | . . . . . . . 1013 . . . . . 734 . . 256 . . 356 . 1627 463 197 Piercing . | . . . . . . . . . . . . . . . . . . . . . . . . Highest Corruption 17 | . . . . . . . . . . . . . . 17 . . . 4 7 7 17 2 1 Average Corruption 8 | . . . . . . . . . . . . . . 12 . . . 2 1 4 11 2 1 Corruption Purged 4 | . . . . . . . . . . . . . . . . . . 4 . . . . . Corruption Blocked . | . . . . . . . . . . . . . . . . . . . . . . . . Effects 75 | . . . . . . . . . . . . . . 1 . . . 3 3 9 58 1 . Message Errors 18 | . . . . . . . . . . . . . . . . . . . 1 1 15 1 . Matter Fused 22 | . . . . . . . . . . . . . . . . . . 1 1 3 17 . . Heat Flow Errors 8 | . . . . . . . . . . . . . . . . . . . . 1 7 . . Energy Discharges 10 | . . . . . . . . . . . . . . 1 . . . . . 2 7 . . Parts Rejected 2 | . . . . . . . . . . . . . . . . . . . . 1 1 . . Data Loss (minor) 7 | . . . . . . . . . . . . . . . . . . 1 . 1 5 . . Data Loss (major) 2 | . . . . . . . . . . . . . . . . . . . . . 2 . . Misfires 1 | . . . . . . . . . . . . . . . . . . . . . 1 . . Alerts 1 | . . . . . . . . . . . . . . . . . . 1 . . . . . Misdirections 1 | . . . . . . . . . . . . . . . . . . . . . 1 . . Weapon Failures 3 | . . . . . . . . . . . . . . . . . . . 1 . 2 . . Overload Shots 9 | . . . . . . . . . . . . . . 8 1 . . . . . . . . Overflow Damage 1729 | . . 41 36 357 47 . 528 . . . . 124 40 208 . 61 . . 33 33 221 . . Projectiles 271 | . . . 9 . 47 . 26 . . . . 48 . 141 . . . . . . . . . Explosions 187 | . . 11 . . . . . . . . . 76 . 67 . . . . . 33 . . . Melee 1271 | . . 30 27 357 . . 502 . . . . . 40 . . 61 . . 33 . 221 . . Knockbacks 8 | . . . 1 4 . . . . . . . . . . . 3 . . . . . . . Impact 4 | . . . 1 3 . . . . . . . . . . . . . . . . . . . Kinetic 3 | . . . . . . . . . . . . . . . . 3 . . . . . . . Secondary 1 | . . . . 1 . . . . . . . . . . . . . . . . . . . Self-Inflicted Damage 78 | . . 26 . . . . . . . . . . . . . . . . . 28 . . 24 Shots 5 | . . 1 . . . . . . . . . . . . . . . . . 2 . . 2 Rammed 2 | 1 . . 1 . . . . . . . . . . . . . . . . . . . . Targets Rammed 3 | 1 1 . 1 . . . . . . . . . . . . . . . . . . . . Kicked . | . . . . . . . . . . . . . . . . . . . . . . . . Crushed 1 | . 1 . . . . . . . . . . . . . . . . . . . . . . Highest Temperature 485 | . 43 5 78 . 11 13 2 2 4 8 . 84 . 177 404 199 376 199 168 268 190 . 485 Average Temperature 87 | . 17 5 36 . 2 7 2 2 1 7 . 34 . 54 150 105 166 107 51 133 49 . 105 Received Heat Transfer 2448 | . 234 90 24 . 79 9 . . 9 60 . . . 388 . 342 4 18 296 76 522 27 270 Effects 5 | . . . . . . . . . . . . . . . 2 . 1 . . . . . 2 Shutdowns 2 | . . . . . . . . . . . . . . . . . . . . . . . 2 Energy Bleed 3 | . . . . . . . . . . . . . . . 2 . 1 . . . . . . Siege Activations 1 | . . . . . . . . . . . . . . . . . . . . . . . 1 Total Turns 20 | . . . . . . . . . . . . . . . . . . . . . . . 20 Longest Duration 20 | . . . . . . . . . . . . . . . . . . . . . . . 20 Robots Corrupted 7 | . . 1 . 4 . . . . . . . . . . . . . . . 2 . . . Combat Hostiles 2 | . . . . . . . . . . . . . . . . . . . . 2 . . . Parts Fried 10 | . . . . . . . . . . . . . . 1 . . 2 . . 5 . . 2 Impact Corruptions 12 | . . 2 1 9 . . . . . . . . . . . . . . . . . . . Robots Melted 10 | . . . . . 1 . . . . 1 . . . 4 . 1 1 2 . . . . . Combat Hostiles 8 | . . . . . 1 . . . . 1 . . . 4 . 1 1 . . . . . . Parts Melted 41 | . . . . . 2 . . . . 1 . . . 7 1 12 5 12 1 . . . . Heat Transferred 12163 | . . . . . . . . . . . . . . . 550 4770 1987 2700 1314 348 . . 494 Parts Sabotaged 1 | . . . . . . . . . . . . . . . . 1 . . . . . . . Parts Stolen . | . . . . . . . . . . . . . . . . . . . . . . . . Parts Stripped 19 | . . . . . . . . . . . . . . . . . . . . . 19 . . Power Chain Reactions 4 | . . . . . . . . . . . . . . . . . . . . 2 . . 2 Alert | -11 -10 -10 -9 -9 -6 -6 -6 -6 -5 -5 -5 -5 -5 -4 -4 -4 -4 -4 -4 -3 -3 -2 -1 ------- Run | Yrd Mat Sub Rec Scr Fac Low Low Zio Pro Fac Upp Upp Zhi Pro Fac Ext Cet Arc Hub Res Qua Res Acc Peak Influence 1145 | 5 147 . 138 . 199 . . . . 233 . . . . 238 1145 1105 739 361 806 647 461 595 Initial 621 | . 3 . . . . . . . . 151 . . . . 101 22 621 442 96 123 378 336 268 Average 364 | 2 33 . 28 . 48 . . . . 194 . . . . 186 719 886 521 218 520 463 384 364 Maximum Alert Level 4 | . . . . . . . . . . 1 . . . . 1 4 4 3 1 3 2 2 2 Low Security (%) 41 | 100 100 . 100 . 100 . . . . 58 . . . . 30 23 . . 36 15 . . 17 Level 1 20 | . . . . . . . . . . 41 . . . . 69 7 . 29 63 11 27 70 38 Level 2 20 | . . . . . . . . . . . . . . . . 6 10 49 . 47 72 29 44 Level 3 16 | . . . . . . . . . . . . . . . . 54 59 21 . 24 . . . Level 4 2 | . . . . . . . . . . . . . . . . 7 30 . . . . . . Level 5 . | . . . . . . . . . . . . . . . . . . . . . . . . High Security . | . . . . . . . . . . . . . . . . . . . . . . . . Max Security . | . . . . . . . . . . . . . . . . . . . . . . . . Squads Dispatched 36 | . 1 . . . 2 . . . . . . . . 1 1 7 1 . 4 6 6 2 5 Investigation 12 | . . . . . 2 . . . . . . . . . 1 4 1 . . 3 . . 1 Extermination 7 | . . . . . . . . . . . . . . . . . . . 1 . 4 1 1 Reinforcement 13 | . 1 . . . . . . . . . . . . . . 1 . . 3 3 2 . 3 Assault 4 | . . . . . . . . . . . . . . 1 . 2 . . . . . 1 . Garrison . | . . . . . . . . . . . . . . . . . . . . . . . . Intercept . | . . . . . . . . . . . . . . . . . . . . . . . . Searches Triggered 1 | . . . . . . . . . . . . . . . . . . . . . . . 1 Construction Impeded . | . . . . . . . . . . . . . . . . . . . . . . . . Haulers Reinforced 3 | . . . . . . . . . . . . . . . . . . . . 2 1 . . Active Scanning Responses . | . . . . . . . . . . . . . . . . . . . . . . . . Cargo Convoy Interrupts . | . . . . . . . . . . . . . . . . . . . . . . . . Stealth | -11 -10 -10 -9 -9 -6 -6 -6 -6 -5 -5 -5 -5 -5 -4 -4 -4 -4 -4 -4 -3 -3 -2 -1 --------- Run | Yrd Mat Sub Rec Scr Fac Low Low Zio Pro Fac Upp Upp Zhi Pro Fac Ext Cet Arc Hub Res Qua Res Acc Distress Signals 17 | . 1 . . . . . . . . . . . . . 1 1 2 . . 4 1 . 7 Communications Jammed 108 | . . . . . . . . . . . . . . . . . . . 46 1 46 15 . Distress Signals 85 | . . . . . . . . . . . . . . . . . . . 46 1 23 15 . Times Spotted 413 | . 14 19 5 . 10 2 3 2 11 6 . 7 . 32 3 46 14 17 34 32 58 10 88 Peak Tracking Total 25 | . 3 6 2 . 3 2 3 1 6 4 . 5 . 11 3 6 5 2 10 5 5 5 25 Tactical Retreats 39 | . . 1 . . . . . . 1 . . 1 . 2 . 4 . . 3 1 8 . 18 Traps | -11 -10 -10 -9 -9 -6 -6 -6 -6 -5 -5 -5 -5 -5 -4 -4 -4 -4 -4 -4 -3 -3 -2 -1 ------- Run | Yrd Mat Sub Rec Scr Fac Low Low Zio Pro Fac Upp Upp Zhi Pro Fac Ext Cet Arc Hub Res Qua Res Acc Traps Triggered 13 | . . . . . . . . . . . . . . . . 7 . . 2 . . 1 3 Indirectly . | . . . . . . . . . . . . . . . . . . . . . . . . Trap Hack Attempts . | . . . . . . . . . . . . . . . . . . . . . . . . Triggered . | . . . . . . . . . . . . . . . . . . . . . . . . Disarmed . | . . . . . . . . . . . . . . . . . . . . . . . . Reprogrammed . | . . . . . . . . . . . . . . . . . . . . . . . . Reused . | . . . . . . . . . . . . . . . . . . . . . . . . Traps Extracted . | . . . . . . . . . . . . . . . . . . . . . . . . Installed . | . . . . . . . . . . . . . . . . . . . . . . . . Triggered 6 | . . 1 . . . . . . 2 . . 2 . 1 . . . . . . . . . Most Traps Carried 1 | . . 1 . . . . . . . . . . . . . . . . . . . . . Objects Rigged 1 | . . . . . . . . . . . . . . . . . . . . . 1 . . Exploded 1 | . . . . . . . . . . . . . . . . . . . . . 1 . . Machines | -11 -10 -10 -9 -9 -6 -6 -6 -6 -5 -5 -5 -5 -5 -4 -4 -4 -4 -4 -4 -3 -3 -2 -1 ---------- Run | Yrd Mat Sub Rec Scr Fac Low Low Zio Pro Fac Upp Upp Zhi Pro Fac Ext Cet Arc Hub Res Qua Res Acc Machines Disabled 36 | . . 1 1 . . . . 3 . . . . . 1 2 7 1 4 5 3 8 . . Max in Single Turn 2 | . . 1 . . . . . 1 . . . . . 1 1 1 1 1 1 2 2 . . Garrison Access 4 | . . . . . 1 . . . . . . . . . . . . . 1 1 . . 1 Network Hub 2 | . . . . . . . . . . . . . . . . . . . 2 . . . . Machines Repaired . | . . . . . . . . . . . . . . . . . . . . . . . . Machines Dismantled . | . . . . . . . . . . . . . . . . . . . . . . . . Machines Sabotaged . | . . . . . . . . . . . . . . . . . . . . . . . . Overloaded Fab Kills . | . . . . . . . . . . . . . . . . . . . . . . . . Hacking | -11 -10 -10 -9 -9 -6 -6 -6 -6 -5 -5 -5 -5 -5 -4 -4 -4 -4 -4 -4 -3 -3 -2 -1 --------- Run | Yrd Mat Sub Rec Scr Fac Low Low Zio Pro Fac Upp Upp Zhi Pro Fac Ext Cet Arc Hub Res Qua Res Acc Machines Accessed 89 | . 6 2 10 2 5 1 . 1 . 1 . . 4 . 3 16 2 . 8 5 13 2 8 Terminals 58 | . 5 . 5 . 2 . . . . 1 . . . . 2 14 2 . 7 4 12 . 4 Fabricators 2 | . . . . . . . . . . . . . . . . . . . . . . 1 1 Repair Stations 2 | . 1 . . . . . . . . . . . . . . . . . . . . 1 . Recycling Units 12 | . . . 5 . 2 . . . . . . . . . 1 2 . . . 1 . . 1 Scanalyzers . | . . . . . . . . . . . . . . . . . . . . . . . . Garrison Access 5 | . . . . . 1 . . . . . . . . . . . . . 1 . 1 . 2 Total Hacks 284 | . 16 13 30 20 10 1 . 2 . 5 . . 17 . 7 41 7 . 30 13 42 7 23 Successful 156 | . 11 13 18 20 8 1 . 2 . 2 . . 17 . 3 19 3 . 19 5 8 2 5 Failed 128 | . 5 . 12 . 2 . . . . 3 . . . . 4 22 4 . 11 8 34 5 18 Catastrophic 27 | . . . . . 1 . . . . 2 . . . . . 1 2 . 1 2 12 1 5 Database Lockouts . | . . . . . . . . . . . . . . . . . . . . . . . . Manual 132 | . 12 . 21 . 4 . . . . 5 . . . . 4 21 4 . 20 9 24 . 8 Terminals 185 | . 14 . 18 . 6 . . . . 5 . . . . 5 39 7 . 28 11 39 . 13 Fabricators 6 | . . . . . . . . . . . . . . . . . . . . . . 5 1 Repair Stations 4 | . 2 . . . . . . . . . . . . . . . . . . . . 2 . Recycling Units 23 | . . . 12 . 2 . . . . . . . . . 2 2 . . . 2 . . 3 Scanalyzers . | . . . . . . . . . . . . . . . . . . . . . . . . Garrison Access 13 | . . . . . 2 . . . . . . . . . . . . . 2 . 3 . 6 Terminal Hacks 95 | . 1 13 5 20 3 1 . 2 . . . . 17 . 1 9 3 . 9 2 7 . 2 Record 44 | . . 12 . 20 . . . . . . . . 5 . . 1 3 . . 1 2 . . Part Schematic 7 | . . . 1 . . . . 2 . . . . 4 . . . . . . . . . . Robot Analysis 8 | . 1 . 2 . . . . . . . . . 4 . . . . . 1 . . . . Prototype ID Bank 8 | . . . . . 1 . . . . . . . 4 . . 1 . . 2 . . . . Open Door 7 | . . . . . . 1 . . . . . . . . 1 5 . . . . . . . Level Access Points 1 | . . . . . . . . . . . . . . . . . . . 1 . . . . Branch Access Points 1 | . . . . . . . . . . . . . . . . . . . . . 1 . . Terminal Index 1 | . . . 1 . . . . . . . . . . . . . . . . . . . . Alert Level 3 | . . . . . . . . . . . . . . . . 1 . . 2 . . . . Unreport Threat 5 | . . . . . . . . . . . . . . . . 1 . . 1 . 2 . 1 Locate Traps 3 | . . . . . 1 . . . . . . . . . . . . . . 1 . . 1 Patrol Status 1 | . . . . . 1 . . . . . . . . . . . . . . . . . . Zone Layout 5 | . . . 1 . . . . . . . . . . . . . . . 2 . 2 . . Derelict Proto ID Bank 1 | . . 1 . . . . . . . . . . . . . . . . . . . . . Fabricator Hacks 2 | . . . . . . . . . . . . . . . . . . . . . . 1 1 Build 2 | . . . . . . . . . . . . . . . . . . . . . . 1 1 Repair Station Hacks 3 | . 2 . . . . . . . . . . . . . . . . . . . . 1 . Scan Component 2 | . 1 . . . . . . . . . . . . . . . . . . . . 1 . Repair 1 | . 1 . . . . . . . . . . . . . . . . . . . . . . Recycling Unit Hacks 4 | . . . 3 . . . . . . . . . . . . . . . . 1 . . . Retrieve Components 4 | . . . 3 . . . . . . . . . . . . . . . . 1 . . . Scanalyzer . | . . . . . . . . . . . . . . . . . . . . . . . . Garrison Access Hacks 3 | . . . . . 1 . . . . . . . . . . . . . 1 . . . 1 Seal Access 3 | . . . . . 1 . . . . . . . . . . . . . 1 . . . 1 Unauthorized Hacks 49 | . 8 . 10 . 4 . . . . 2 . . . . 2 10 . . 9 2 1 . 1 Terminals 39 | . 8 . 6 . 2 . . . . 2 . . . . 1 8 . . 9 2 1 . . Botnet 11 | . 2 . 2 . . . . . . 1 . . . . . 3 . . 3 . . . . Detonate 1 | . . . . . . . . . . . . . . . . . . . . . 1 . . Operators 2 | . 1 . . . . . . . . . . . . . . . . . 1 . . . . Skim 25 | . 5 . 4 . 2 . . . . 1 . . . . 1 5 . . 5 2 . . . Fabricators . | . . . . . . . . . . . . . . . . . . . . . . . . Repair Stations 6 | . . . . . 2 . . . . . . . . . 1 2 . . . . . . 1 Recycling Units 4 | . . . 4 . . . . . . . . . . . . . . . . . . . . Tunnel 4 | . . . 4 . . . . . . . . . . . . . . . . . . . . Scrapoids 6 | . . . . . 2 . . . . . . . . . 1 2 . . . . . . 1 Scanalyzers . | . . . . . . . . . . . . . . . . . . . . . . . . Garrison Access . | . . . . . . . . . . . . . . . . . . . . . . . . Data Cores Recovered 2 | . . . . . . . . . . 1 . . . . . 1 . . . . . . . Used 1 | . . . . . . . . . . 1 . . . . . . . . . . . . . Hacking Detections 60 | . 6 . 9 . 3 . . . . 1 . . . . 2 11 3 . 5 4 11 . 5 Full Trace Events 3 | . . . 1 . . . . . . . . . . . . 1 1 . . . . . . Feedback Events . | . . . . . . . . . . . . . . . . . . . . . . . . Feedback Blocked . | . . . . . . . . . . . . . . . . . . . . . . . . Robot Schematics Acquired . | . . . . . . . . . . . . . . . . . . . . . . . . Robots Built 3 | . . . . . . . . . . . . . . . . . . . . . . 3 . Authchips . | . . . . . . . . . . . . . . . . . . . . . . . . Time 102 | . . . . . . . . . . . . . . . . . . . . . . 102 . Total Robot Build Rating 24 | . . . . . . . . . . . . . . . . . . . . . . 24 . Part Schematics Acquired 7 | . . . 1 . . . . 2 . . . . 4 . . . . . . . . . . Parts Built 2 | . . . . . . . . . . . . . . . . . . . . . . . 2 Authchips . | . . . . . . . . . . . . . . . . . . . . . . . . Time 46 | . . . . . . . . . . . . . . . . . . . . . . . 46 Total Part Build Rating 18 | . . . . . . . . . . . . . . . . . . . . . . . 18 Parts Repaired 1 | . 1 . . . . . . . . . . . . . . . . . . . . . . Time 26 | . 26 . . . . . . . . . . . . . . . . . . . . . . Parts Recycled . | . . . . . . . . . . . . . . . . . . . . . . . . Recycled Matter . | . . . . . . . . . . . . . . . . . . . . . . . . Retrieved Matter . | . . . . . . . . . . . . . . . . . . . . . . . . Retrieved Components 10 | . . . 9 . . . . . . . . . . . . . . . . 1 . . . Parts Scanalyzed . | . . . . . . . . . . . . . . . . . . . . . . . . Part Schematics Acquired . | . . . . . . . . . . . . . . . . . . . . . . . . Parts Damaged . | . . . . . . . . . . . . . . . . . . . . . . . . Bothacking | -11 -10 -10 -9 -9 -6 -6 -6 -6 -5 -5 -5 -5 -5 -4 -4 -4 -4 -4 -4 -3 -3 -2 -1 ------------ Run | Yrd Mat Sub Rec Scr Fac Low Low Zio Pro Fac Upp Upp Zhi Pro Fac Ext Cet Arc Hub Res Qua Res Acc Used RIF Installer . | . . . . . . . . . . . . . . . . . . . . . . . . Robots Hacked 7 | . . . . 7 . . . . . . . . . . . . . . . . . . . Non-combat . | . . . . . . . . . . . . . . . . . . . . . . . . Combat 7 | . . . . 7 . . . . . . . . . . . . . . . . . . . Robot Hacks Applied 7 | . . . . 7 . . . . . . . . . . . . . . . . . . . parse_system 7 | . . . . 7 . . . . . . . . . . . . . . . . . . . Relay Couplers Released 2 | . . . . . . . . . . . . . . . . . . . 1 1 . . . Machine Destruction 2 | . . . . . . . . . . . . . . . . . . . 1 1 . . . Fabnet Peak Effective % . | . . . . . . . . . . . . . . . . . . . . . . . . Robots Rewired 28 | . . . 10 . . . . . . . . . . 2 . 16 . . . . . . . Allies Hacked . | . . . . . . . . . . . . . . . . . . . . . . . . Hacks Repelled . | . . . . . . . . . . . . . . . . . . . . . . . . Allies | -11 -10 -10 -9 -9 -6 -6 -6 -6 -5 -5 -5 -5 -5 -4 -4 -4 -4 -4 -4 -3 -3 -2 -1 -------- Run | Yrd Mat Sub Rec Scr Fac Low Low Zio Pro Fac Upp Upp Zhi Pro Fac Ext Cet Arc Hub Res Qua Res Acc Total Allies 85 | . . . 10 5 10 . . 3 . . . . . 2 5 35 7 . . . . 3 5 Largest Group 21 | . . . 10 15 10 5 2 3 3 . . . . 1 5 21 6 6 5 . . 3 5 Highest-Rated Group 939 | . . . 173 408 173 146 56 65 65 . . . . 49 238 939 639 639 480 . . 126 323 Highest-Rated Ally 159 | . . . 34 47 34 31 28 25 25 . . . . 49 50 159 159 159 96 . . 42 67 Total Orders 21 | . . . 2 3 3 . . . . . . 2 . . . 9 . . 2 . . . . STAY 13 | . . . 1 3 2 . . . . . . . . . . 5 . . 2 . . . . FOLLOW 6 | . . . 1 . 1 . . . . . . . . . . 4 . . . . . . . EXPLORE 2 | . . . . . . . . . . . . 2 . . . . . . . . . . . Ally Attacks 546 | . . . 13 . 36 18 16 . 9 . . . . 15 . 306 52 21 40 . . 6 14 Total Damage 15076 | . . . 320 . 708 325 188 . 318 . . . . 490 . 7750 2296 739 1302 . . 208 432 Kills 83 | . . . 3 . 5 2 3 . 4 . . . . 3 . 42 7 2 9 . . 2 1 Allies Corrupted 8 | . . . . 4 . . . . . . . . . . . . . . 4 . . . . Allies Melted 2 | . . . . . . . . . . . . . . . . 2 . . . . . . . Intel | -11 -10 -10 -9 -9 -6 -6 -6 -6 -5 -5 -5 -5 -5 -4 -4 -4 -4 -4 -4 -3 -3 -2 -1 ------- Run | Yrd Mat Sub Rec Scr Fac Low Low Zio Pro Fac Upp Upp Zhi Pro Fac Ext Cet Arc Hub Res Qua Res Acc Robot Analysis Total 8 | . 1 . 2 . . . . . . . . . 4 . . . . . 1 . . . . Derelict Logs Recovered 6 | . . 1 . 2 . . . . . . 1 . . 2 . . . . . . . . . Drone Launches 2 | . . . . . . . . . . . . 2 . . . . . . . . . . . Drone Recoveries 1 | . . . . . . . . . . . . 1 . . . . . . . . . . . Exploration | -11 -10 -10 -9 -9 -6 -6 -6 -6 -5 -5 -5 -5 -5 -4 -4 -4 -4 -4 -4 -3 -3 -2 -1 ------------- Run | Yrd Mat Sub Rec Scr Fac Low Low Zio Pro Fac Upp Upp Zhi Pro Fac Ext Cet Arc Hub Res Qua Res Acc Turns Passed 54681 | 67 1339 4609 2350 24702 565 439 730 6402 388 151 286 710 451 1523 474 2886 363 1697 1245 610 1456 328 910 Spaces Moved 17535 | 31 507 1980 571 2715 365 312 518 1346 261 95 206 387 295 970 310 1806 231 435 830 453 1036 290 1585 Core 925 | 6 . . . 734 . . . . . . . . . . . . . . . . . . 185 Treads 2867 | 25 507 1980 136 137 . . . . . . . . . . . . . . . . 82 . . Legs . | . . . . . . . . . . . . . . . . . . . . . . . . Wheels 11638 | . . . 435 1844 365 312 518 1346 261 95 206 387 295 970 310 1806 231 435 830 453 539 . . Hover 1493 | . . . . . . . . . . . . . . . . . . . . . 415 290 788 Flight 612 | . . . . . . . . . . . . . . . . . . . . . . . 612 Fastest Speed 20 | 50 160 160 345 50 120 130 130 130 130 130 130 130 130 130 130 130 130 130 90 80 46 36 20 Average Speed 254 | 138 160 203 377 897 129 130 130 130 130 130 130 130 130 130 131 130 130 130 116 92 100 96 44 Slowest Speed 3750 | 160 160 480 480 3750 130 130 130 130 130 130 130 130 200 130 140 140 130 130 140 110 190 102 201 Overloaded Moves . | . . . . . . . . . . . . . . . . . . . . . . . . Propulsion Burnouts . | . . . . . . . . . . . . . . . . . . . . . . . . Robots Hopped 21 | . . . . . . . . . . . . . . . . . . . . . . . 21 Cave-ins Triggered . | . . . . . . . . . . . . . . . . . . . . . . . . Teleports 5 | . . . . . . . . . . . . . . . . . . . . . 4 1 . Exploration Rate (%) 56 | 3 74 91 94 88 14 48 57 81 49 3 35 79 61 97 9 94 78 96 45 19 79 13 56 Regions Visited 23 Branch Regions 16 Pre-discovered Areas 15 | . 1 1 4 3 . . . 1 . . 1 . 3 . . . . . 1 . . . . Known Exits Taken 14 | . 1 1 . . 1 1 1 1 1 1 1 . . 1 . 1 . . 1 1 1 . . Unknown Exits Taken 9 | 1 . . 1 1 . . . . . . . 1 1 . 1 . 1 1 . . . 1 . Scrap Searched 18 | . . 4 . 4 . . 2 1 . . 2 2 . 3 . . . . . . . . . Spaces Dug 71 | . . 7 . . 3 . 3 . . . 9 8 . 5 6 . . . 11 5 2 . 12 Terrain Destroyed 531 | . . 51 1 . 8 . 3 . 43 1 9 45 . 199 34 30 11 11 24 17 28 . 16 Melee 41 | . . 7 . . 1 . 1 . . . . . . 1 1 . . . 11 5 2 . 12 Projectile 145 | . . . 1 . 7 . 2 . 2 1 9 8 . 26 15 30 11 11 13 3 6 . . AOE 344 | . . 44 . . . . . . 41 . . 37 . 172 18 . . . . 8 20 . 4 Terrain Rammed . | . . . . . . . . . . . . . . . . . . . . . . . . Walls Destroyed . | . . . . . . . . . . . . . . . . . . . . . . . . Machines Disabled . | . . . . . . . . . . . . . . . . . . . . . . . . Actions | -11 -10 -10 -9 -9 -6 -6 -6 -6 -5 -5 -5 -5 -5 -4 -4 -4 -4 -4 -4 -3 -3 -2 -1 --------- Run | Yrd Mat Sub Rec Scr Fac Low Low Zio Pro Fac Upp Upp Zhi Pro Fac Ext Cet Arc Hub Res Qua Res Acc Total 26577 | 45 988 2404 751 3074 440 340 547 5996 297 117 217 579 346 1142 361 2245 278 1531 1016 569 1258 328 1708 Wait 7140 | . 419 271 47 219 44 5 . 4616 29 13 . 169 1 17 10 78 6 1039 59 43 7 . 48 Move 17474 | 30 506 1979 570 2714 364 311 517 1345 260 94 205 386 294 969 309 1805 230 434 829 452 1035 289 1547 Hop 17 | . . . . . . . . . . . . . . . . . . . . . . . 17 Pick Up 284 | 2 16 26 9 76 3 8 3 11 . 1 2 2 10 5 8 24 6 7 26 4 26 6 3 Fast Attach 89 | 7 1 . . 8 1 . . . . 1 . . 3 . . 4 . 2 10 6 20 3 23 Attach 74 | . 1 3 . 7 5 3 . . . 1 . . 1 5 4 5 . . 7 5 9 6 12 Detach 22 | . . . . 4 2 . . . . . . . . . . 3 . 1 2 3 2 1 4 Swap 194 | 2 12 25 3 5 . 2 2 3 1 1 . 7 15 10 10 20 9 5 13 11 19 9 10 Drop 191 | . 9 13 . 15 . 4 3 11 . . 1 1 11 . 4 27 6 7 21 4 37 8 9 Fire 550 | 3 23 31 6 15 20 7 4 9 7 6 9 14 2 92 15 81 21 36 28 36 65 . 20 Melee 191 | . . 56 1 11 1 . 17 1 . . . . 9 1 1 8 . . 21 5 38 6 15 Ram . | . . . . . . . . . . . . . . . . . . . . . . . . Kick . | . . . . . . . . . . . . . . . . . . . . . . . . Crush 3 | 1 1 . 1 . . . . . . . . . . . . . . . . . . . . Escape Stasis 56 | . . . . . . . . . . . . . . . . 56 . . . . . . . Rewire 292 | . . . 114 . . . 1 . . . . . . 43 . 134 . . . . . . . Trap . | . . . . . . . . . . . . . . . . . . . . . . . . Miscellaneous . | . . . . . . . . . . . . . . . . . . . . . . . . Route ------- -11/Scrapyard -10/Materials (discovered 6 exits: *Mat x3 / *Min x2 / *Sub) -10/Subcaves (discovered 3 exits: *Mat x2 / *Rec) -9/Recycling (discovered 2 exits: [*Fac] / *Scr) -9/Scraptown (discovered 2 exits: *Fac x2) -6/Factory (discovered 3 exits: Fac x2 / *Low) -6/Lower Caves -6/Lower Caves (discovered 2 exits: *Fac / *Zio) -6/Zion (discovered 2 exits: [*Dee] / *Pro) -5/Proximity Caves -5/Factory (discovered 2 exits: *Upp x2) -5/Upper Caves -5/Upper Caves (discovered 2 exits: *Fac / *Zhi) -5/Zhirov -4/Proximity Caves -4/Factory (discovered 2 exits: *Ext / Arm) -4/Extension (discovered 3 exits: *Res x2 / *Cet) -4/Cetus (discovered 2 exits: *Res / *Arc) -4/Archives (discovered 3 exits: *Res / *Hub x2) -4/Hub_04(d) (discovered 4 exits: *Res x4) -3/Research (discovered 4 exits: Res x3 / *Qua) -3/Quarantine -2/Research -1/Access History --------- Turn | Location | Event 5 | -11/Scrapyard | Discovered new exit (range 15) 68 | -11/Scrapyard | Entered Materials 68 | -10/Materials | Discovered new exit (range 8) 317 | -10/Materials | Build established: Mutant 536 | -10/Materials | Discovered new exit (range 15) 666 | -10/Materials | Discovered new exit (range 3) 870 | -10/Materials | Repaired Lgt. Armor Plating 928 | -10/Materials | Discovered new exit (range 12) 1101 | -10/Materials | Learned location of 2 exits from Mines 1155 | -10/Materials | Learned location of 1 exit from Storage 1199 | -10/Materials | Learned location of Recycling (-9) 1231 | -10/Materials | Identified exit to Materials 1253 | -10/Materials | Identified exit to Subcaves 1253 | -10/Materials | Identified exit to Mines 1284 | -10/Materials | Loaded intel: 11 interactive machine locations 1407 | -10/Materials | Entered Subcaves 1408 | -10/Subcaves | Identified exit to Materials 1599 | -10/Subcaves | Shifting Twisted Machinery released Sub. Laser 1600 | -10/Subcaves | Shifting Twisted Machinery released Sub. Shrapnel Launcher 2586 | -10/Subcaves | Learned location of Zion (-6) 2586 | -10/Subcaves | Met a Zionite searching for "candidates" 3152 | -10/Subcaves | Core integrity fell below 50% 3368 | -10/Subcaves | Visited 4L-MR0's lab 3385 | -10/Subcaves | Found Powered Cannon 3597 | -10/Subcaves | A swath of the cavern ceiling suddenly collapsed 3896 | -10/Subcaves | Visited Clippyterm 3901 | -10/Subcaves | Identified exit to Recycling 3940 | -10/Subcaves | A swath of the cavern ceiling suddenly collapsed 4963 | -10/Subcaves | Build established: Hauler-Mutant 6016 | -10/Subcaves | Entered Recycling 6363 | -9/Recycling | Scanned before Scraplab entrance 7140 | -9/Recycling | Build established: Commander-Mutant 7460 | -9/Recycling | Discovered new exit (range 16) 8301 | -9/Recycling | Entered Scraplab 8332 | -9/Recycling | Discovered new exit (range 2) 8366 | -9/Recycling | Entered Scraptown 8366 | -9/Scraptown | Accompanied by 10 allies 8987 | -9/Scraptown | Discovered new exit (range 7) 9188 | -9/Scraptown | Scanned Subdweller tech in exchange for log data 9194 | -9/Scraptown | Learned Research emergency access door positions 9198 | -9/Scraptown | Learned Factory emergency access door positions 9308 | -9/Scraptown | Visited Comm Corps 9450 | -9/Scraptown | Visited Shadow of the Wyrm 9508 | -9/Scraptown | Visited Cyclists 9941 | -9/Scraptown | Visited Red Mages 10082 | -9/Scraptown | Visited Observation Area 10127 | -9/Scraptown | Visited Junk Repository 10258 | -9/Scraptown | Visited UFD Registry 10258 | -9/Scraptown | Registered with UFD as "Hardcase" 10879 | -9/Scraptown | Visited Scrapoid Pod Storage 10958 | -9/Scraptown | Visited Junk Repository 11127 | -9/Scraptown | Delivered Scrap Shield to a Scientist 11462 | -9/Scraptown | Discovered new exit (range 5) 11686 | -9/Scraptown | Visited Chapter 10 11810 | -9/Scraptown | Visited Scrapoid Research Area 11962 | -9/Scraptown | Visited Curators Association 12124 | -9/Scraptown | Visited Cartography Club 12290 | -9/Scraptown | Released all parts (6) 12307 | -9/Scraptown | Found Surveybot 17 Chip 12324 | -9/Scraptown | Learned location of Upper Caves (-5) 12324 | -9/Scraptown | Learned 8 Materials zone layouts 12324 | -9/Scraptown | Learned 8 Factory zone layouts 12324 | -9/Scraptown | Learned 12 Factory zone layouts 12324 | -9/Scraptown | Learned 20 Factory zone layouts 12324 | -9/Scraptown | Learned 8 Research zone layouts 12324 | -9/Scraptown | Learned 8 Access zone layouts 12324 | -9/Scraptown | Learned 20 Lower Caves zone layouts 12324 | -9/Scraptown | Learned 16 Upper Caves zone layouts 12324 | -9/Scraptown | Learned 4 Hub_04(d) zone layouts 12324 | -9/Scraptown | Learned Factory emergency access door positions 12324 | -9/Scraptown | Learned location of 3 exits from Proximity Caves 12324 | -9/Scraptown | Learned location of 3 exits from Lower Caves 12343 | -9/Scraptown | Found Deep Structural Scanner 12729 | -9/Scraptown | Visited LU-1G1's Boring Crew 12879 | -9/Scraptown | Visited DA-N13 Charitable Foundation 12892 | -9/Scraptown | Found DCF Scrap (31 items) 13275 | -9/Scraptown | Found Scrapoid Pod 13436 | -9/Scraptown | Scrapoid Pod released 09S06-D (x5) 13864 | -9/Scraptown | Murdered 4 allies 13884 | -9/Scraptown | Found Scrap Suit 30290 | -9/Scraptown | Found Scrap Suit 33068 | -9/Scraptown | Entered Factory 33068 | -6/Factory | Accompanied by 10 allies 33068 | -6/Factory | Evolved 8 slots: Propulsion x2, Utility x5, Weapon x1 33069 | -6/Factory | Identified exit to Factory 33069 | -6/Factory | Identified exit to Lower Caves 33094 | -6/Factory | Attached Powered Cannon, gained temporary slot: Power 33236 | -6/Factory | Lost 3 allies 33324 | -6/Factory | Lost 4 allies 33500 | -6/Factory | Build established: Hauler-Scrapper 33534 | -6/Factory | Scrapoid reinforcements arrived 33620 | -6/Factory | Scrapoid reinforcements arrived 33633 | -6/Factory | Entered Lower Caves 33633 | -6/Lower Caves | Accompanied by 5 allies 33634 | -6/Lower Caves | Identified exit to Lower Caves 33635 | -6/Lower Caves | UFD Scientist delivered a prototype 33636 | -6/Lower Caves | Found Prototype Protection 33644 | -6/Lower Caves | Lost 5 allies 33732 | -6/Lower Caves | Lost 3 allies 33733 | -6/Lower Caves | Found Scrap Suit 33998 | -6/Lower Caves | Encountered a Warlord checkpoint 34072 | -6/Lower Caves | Entered another Lower Caves area 34072 | -6/Lower Caves | Accompanied by 2 allies 34073 | -6/Lower Caves | Identified exit to Zion 34108 | -6/Lower Caves | Encountered a Warlord checkpoint 34802 | -6/Lower Caves | Entered Zion 34803 | -6/Zion | Identified exit to Proximity Caves 34828 | -6/Zion | Received a hallucinogenic algorithm 40075 | -6/Zion | Given A8's code to call for help 40208 | -6/Zion | Visited the Megawrench Repair Shop 40251 | -6/Zion | Gained Derelict followers 40515 | -6/Zion | Discovered new exit (range 3) 40515 | -6/Zion | Saw the warning signs outside the Deep Caves entrance 40767 | -6/Zion | Megawrench repaired 8 parts 41204 | -6/Zion | Entered Proximity Caves 41204 | -5/Proximity Caves | Accompanied by 3 allies 41592 | -5/Proximity Caves | Entered Factory 41592 | -5/Factory | Evolved 2 slots: Utility x2 41593 | -5/Factory | Identified exit to Upper Caves 41743 | -5/Factory | Entered Upper Caves 41744 | -5/Upper Caves | Identified exit to Upper Caves 42029 | -5/Upper Caves | Entered another Upper Caves area 42052 | -5/Upper Caves | Discovered new exit (range 19) 42446 | -5/Upper Caves | Spotted B-75 Beast 42514 | -5/Upper Caves | Encountered a Warlord checkpoint 42522 | -5/Upper Caves | Attracted the attention of an 0b10 checkpoint 42673 | -5/Upper Caves | Discovered new exit (range 15) 42739 | -5/Upper Caves | Entered Zhirov 42739 | -5/Zhirov | Discovered new exit (range 3) 42763 | -5/Zhirov | Met Zhirov 42793 | -5/Zhirov | Learned location of Quarantine (-3) 42793 | -5/Zhirov | Learned location of Testing (-2) 42793 | -5/Zhirov | Learned location of Command (-1) 42810 | -5/Zhirov | Zhirov requested help retrieving the SGEMP Prototype 42829 | -5/Zhirov | Found Alien Artifact 42829 | -5/Zhirov | Identified Integrated Dissipator 42829 | -5/Zhirov | Installed Integrated Dissipator, increased core heat dissipation (+20) 42847 | -5/Zhirov | Found Alien Artifact 43190 | -5/Zhirov | Entered Proximity Caves 43191 | -4/Proximity Caves | Identified exit to Factory 43413 | -4/Proximity Caves | Attracted the attention of an 0b10 outpost 43421 | -4/Proximity Caves | Destroyed 11 combat bots 43534 | -4/Proximity Caves | Lost 3 parts (1p2u) 43780 | -4/Proximity Caves | Learned Research terminal intel 43910 | -4/Proximity Caves | Learned location of 1 exit from Proximity Caves 44148 | -4/Proximity Caves | Attracted the attention of an 0b10 checkpoint 44711 | -4/Proximity Caves | System corruption reached 10% 44713 | -4/Proximity Caves | Entered Factory 44713 | -4/Factory | Evolved 2 slots: Power x1, Utility x1 44714 | -4/Factory | Identified exit to Armory 45027 | -4/Factory | Discovered new exit (range 20) 45064 | -4/Factory | Build established: Scavenger-Scrapper 45136 | -4/Factory | Scrapoid reinforcements arrived 45187 | -4/Factory | Entered Extension 45187 | -4/Extension | Accompanied by 5 allies 45613 | -4/Extension | Build established: Hauler-Scrapper 45649 | -4/Extension | Disrupted transfer network 45660 | -4/Extension | Rescued a captive Derelict 45661 | -4/Extension | Rescued a captive Derelict 45665 | -4/Extension | Rescued a captive Derelict 45666 | -4/Extension | Rescued a captive Derelict 45764 | -4/Extension | Rescued a captive Derelict 45765 | -4/Extension | Rescued a captive Derelict 45788 | -4/Extension | Rescued a captive Derelict 45789 | -4/Extension | Rescued a captive Derelict 45845 | -4/Extension | Scrapoids reinforcements arrived? 45888 | -4/Extension | Found Scrap Suit 45994 | -4/Extension | Spotted B-86 Titan 46003 | -4/Extension | Allies destroyed B-86 Titan 46004 | -4/Extension | Identified Enh. Scrap Shield 46006 | -4/Extension | Spotted B-86 Titan 46018 | -4/Extension | Destroyed B-86 Titan 46026 | -4/Extension | Build established: Commander-Scrapper 46074 | -4/Extension | Lost 3 allies 46125 | -4/Extension | Scrapoid reinforcements arrived 46155 | -4/Extension | Learned Armory garrison access intel 46172 | -4/Extension | Lost 3 allies 46197 | -4/Extension | Learned Armory security intel 46228 | -4/Extension | Lost 5 allies 46231 | -4/Extension | Learned Research emergency access door positions 46257 | -4/Extension | Learned Research stockpile data 46272 | -4/Extension | Learned 4 Research zone layouts 46276 | -4/Extension | Learned 4 Factory zone layouts 46277 | -4/Extension | Identified exit to Cetus 46284 | -4/Extension | Learned Quarantine trap positions 46302 | -4/Extension | Learned Armory stockpile data 46330 | -4/Extension | Learned location of 1 exit from Quarantine 46367 | -4/Extension | Learned Factory emergency access door positions 46649 | -4/Extension | Discovered new exit (range 10) 46891 | -4/Extension | Found Scrap Suit 46937 | -4/Extension | First assault squad dispatched 47154 | -4/Extension | Lost 6 allies 47260 | -4/Extension | Discovered new exit (range 3) 47468 | -4/Extension | Build established: Hauler-Scrapper 47924 | -4/Extension | Rescued A7 47942 | -4/Extension | Build established: Scavenger-Scrapper 48073 | -4/Extension | Entered Cetus 48073 | -4/Cetus | Accompanied by 2 allies (A7) 48078 | -4/Cetus | Acquired a Cetus Manufacturing Module code from A7 48089 | -4/Cetus | Spotted Cetus Guard 48089 | -4/Cetus | Spotted Cetus Guard 48096 | -4/Cetus | Destroyed Cetus Guard 48097 | -4/Cetus | Destroyed Cetus Guard 48098 | -4/Cetus | Spotted Cetus Guard 48099 | -4/Cetus | Spotted Cetus Guard 48104 | -4/Cetus | Destroyed Cetus Guard 48111 | -4/Cetus | Destroyed Cetus Guard 48182 | -4/Cetus | Enhanced Grunt warped into view, answering call for help 48186 | -4/Cetus | Enhanced Grunt warped into view, answering call for help 48222 | -4/Cetus | Started Cetus Manufacturing Module 48237 | -4/Cetus | Escorted A7 to Cetus Mainframe 48247 | -4/Cetus | Manufactured an Enhanced Grunt 48268 | -4/Cetus | Discovered new exit (range 16) 48272 | -4/Cetus | Manufactured an Enhanced Grunt 48297 | -4/Cetus | Manufactured an Enhanced Grunt 48301 | -4/Cetus | Spotted Cetus Guard 48301 | -4/Cetus | Spotted Cetus Guard 48304 | -4/Cetus | Spotted Cetus Guard 48305 | -4/Cetus | Found Prototype Device 48309 | -4/Cetus | Spotted Cetus Guard 48316 | -4/Cetus | Allies destroyed Cetus Guard 48321 | -4/Cetus | Destroyed Cetus Guard 48322 | -4/Cetus | Manufactured an Enhanced Grunt 48325 | -4/Cetus | Allies destroyed Cetus Guard 48326 | -4/Cetus | Allies destroyed Cetus Guard 48333 | -4/Cetus | Identified Exp. Thermal Shield 48335 | -4/Cetus | Discovered new exit (range 16) 48343 | -4/Cetus | Met Revision 17 48347 | -4/Cetus | Manufactured an Enhanced Grunt 48436 | -4/Cetus | Entered Archives 48436 | -4/Archives | Accompanied by 6 allies (A7) 48441 | -4/Archives | Received a hacking code to weaken MAIN.C 48482 | -4/Archives | Discovered new exit (range 15) 48504 | -4/Archives | Discovered new exit (range 16) 48530 | -4/Archives | Discovered new exit (range 15) 48568 | -4/Archives | Unable to access archive contents 50133 | -4/Archives | Entered Hub_04(d) 50133 | -4/Hub_04(d) | Accompanied by 5 allies 50134 | -4/Hub_04(d) | Identified exit to Research 50808 | -4/Hub_04(d) | Learned Factory trap positions 50840 | -4/Hub_04(d) | Spotted B-86 Titan 50863 | -4/Hub_04(d) | Learned Testing trap positions 50909 | -4/Hub_04(d) | Learned 4 Proximity Caves zone layouts 50945 | -4/Hub_04(d) | Learned Research emergency access door positions 50991 | -4/Hub_04(d) | Learned Research emergency access door positions 51001 | -4/Hub_04(d) | Learned location of 3 exits from Research 51019 | -4/Hub_04(d) | Learned location of 2 exits from Factory 51048 | -4/Hub_04(d) | Learned 4 Proximity Caves zone layouts 51087 | -4/Hub_04(d) | Learned Research emergency access door positions 51129 | -4/Hub_04(d) | Network Hub disabled 51248 | -4/Hub_04(d) | Network Hub disabled 51329 | -4/Hub_04(d) | Spotted Lightning 51329 | -4/Hub_04(d) | Spotted Lightning 51344 | -4/Hub_04(d) | Spotted Lightning 51372 | -4/Hub_04(d) | Spotted Lightning 51375 | -4/Hub_04(d) | Spotted Lightning 51375 | -4/Hub_04(d) | Spotted Lightning 51378 | -4/Hub_04(d) | Entered Research 51378 | -3/Research | Evolved 2 slots: Propulsion x2 51379 | -3/Research | Identified exit to Research 51379 | -3/Research | Identified exit to Quarantine 51383 | -3/Research | Loaded intel: 23 terminal locations 51576 | -3/Research | Destroyed 10 combat bots 51578 | -3/Research | Revision forces began assault on 0b10 51653 | -3/Research | Destroyed 7 combat bots 51680 | -3/Research | Met up with Revision 17++ 51885 | -3/Research | Found Prototype Device 51885 | -3/Research | Identified Exp. Focal Shield 51970 | -3/Research | Spotted B-86 Titan 51988 | -3/Research | Entered Quarantine 51990 | -3/Quarantine | Loaded intel: 18 trap records 52104 | -3/Quarantine | Build established: Scavenger-Mutant 52263 | -3/Quarantine | System corruption reached 10% 52538 | -3/Quarantine | Identified Transdimensional Reconstructor 52538 | -3/Quarantine | Warped through subspace 52647 | -3/Quarantine | Found Transdimensional Reconstructor 52655 | -3/Quarantine | Found Transdimensional Reconstructor 52657 | -3/Quarantine | Found Alien Artifact 52660 | -3/Quarantine | Found Transdimensional Reconstructor 52660 | -3/Quarantine | Warped through subspace 52698 | -3/Quarantine | Found Alien Artifact 52700 | -3/Quarantine | Found Alien Artifact 52702 | -3/Quarantine | Found Alien Artifact 52703 | -3/Quarantine | Identified Dimensional Node Initializer (x3) 52703 | -3/Quarantine | Initialized slip node 52745 | -3/Quarantine | Lost 4 parts (1n1u2w) 52821 | -3/Quarantine | Found Alien Slashing Weapon 52821 | -3/Quarantine | Identified Sigix Broadsword 52931 | -3/Quarantine | Found Alien Impact Weapon 52946 | -3/Quarantine | Warped through subspace 52990 | -3/Quarantine | Core integrity fell below 50% 52991 | -3/Quarantine | Warped through subspace 53121 | -3/Quarantine | Found Prototype Processor 53121 | -3/Quarantine | Identified Exp. Terrain Scan Processor 53140 | -3/Quarantine | Found Alien Artifact 53151 | -3/Quarantine | Found Alien Artifact 53285 | -3/Quarantine | Identified Core Stripper 53307 | -3/Quarantine | Found Gamma Bomb Array 53328 | -3/Quarantine | Lost 3 parts (1n2u) 53420 | -3/Quarantine | Found Alien Artifact 53444 | -3/Quarantine | Entered Research 53444 | -2/Research | Evolved 2 slots: Power x1, Weapon x1 53445 | -2/Research | Identified Subatomic Replicator 53445 | -2/Research | Used Subatomic Replicator to replicate Sigix Broadsword 53656 | -2/Research | Fabricated B-74 Champion? 53743 | -2/Research | First assault squad dispatched 53755 | -2/Research | Identified Hpw. Transdimensional Reconstructor 53755 | -2/Research | Warped through subspace 53755 | -2/Research | Discovered new exit (range 8) 53772 | -2/Research | Entered Access 53772 | -1/Access | Evolved 2 slots: Propulsion x2 53778 | -1/Access | Spotted B-99 Colossus 53996 | -1/Access | Lost 3 parts (2n1w) 54022 | -1/Access | Search patrols dispatched 54123 | -1/Access | Spotted B-99 Colossus 54145 | -1/Access | Scrapoids reinforcements arrived? 54145 | -1/Access | Identified Terrabomb (x2) 54145 | -1/Access | Used Terrabomb 54151 | -1/Access | Spotted B-99 Colossus 54305 | -1/Access | Lost 24 parts (5p7n8u4w) 54380 | -1/Access | Fabricated Quantum Reactor (x2) 54514 | -1/Access | Core integrity fell below 50% 54545 | -1/Access | Lost 3 parts (1n2w) 54669 | -1/Access | Core integrity fell below 20% 54680 | -1/Access | Used Terrabomb 54680 | -1/Access | Spotted B-99 Colossus 54681 | -1/Access | Spotted B-99 Colossus 54682 | -1/Access | Destroyed by H-88 Terminator with Heavy Machine Gun Last Messages --------------- 54614_ W-44 Eye sends out distress signal. 54624_ O-32 Director: "IFF HANDSHAKE FAILED. SECURING TERMINAL." 54631_ ALERT: Hostiles spotted, dispatching reinforcements to Terminal A012. 54638_ W-44 Eye sends out distress signal. 54652_ Drone sends a signal. 54660_ Acquired Prototype Flight Unit. 54660_ Identified Cld. Field Propulsion Drive. 54665_ Penetrated by Slug. 54666_ H-88 Terminator retrieves Drone. 54667_ Cld. Field Propulsion Drive destroyed. 54667_ Knocked back. 54667_ Acquired 8 matter. 54668_ Penetrated by Slug. 54671_ Gyrokinetic Inverter destroyed. 54678_ Critical hit (Burn: +37). 54680_ Terrabomb activated. 54680_ Penetrated by Slug. 54680_ Slug penetrates G-73 Enforcer. 54681_ Cmb. Linear Gravjet destroyed. Map ----- +----------------------------------------------------+ | ?????????????????????+ # # #? | | ?????????????????????# # # #??####### | | ?????????????????????# # # #????????? | | ?????????????????????# # " + #????????? | | ?????????????????????# #= """ # #????????? | | ?????????????????????" # """ # ^ #????????? | | ?????????????????? " # " # #????????? | | ????????????????"""""" # # #????????? | | ?????????????? " # # #????????? | | ?????????????? " + ""# #????????? | | ????????????? " " ""# #????????? | | ?????????????"""" " " T"# #????????? | | ????????????? " " " """ #????????? | | ???????????? ; ; ggg" """ #????????? | | #??# ##" ; ; g + ; #????????? | | #??# #?"";;; ;^ ; ; #????????? | | #??## ##"";; ; ;;;;;;;;;; +????????? | | #???# # ; ; ; ; "????????? | | #???# + ;;;;;;;;;+;;;;;;; ; "????????? | | #???# # ; ; ; "????????? | | #???# # [ ; ; ;;;; "????????? | | #???# # ; ; ; ????????? | | ####???# # # ; ; ????????? | | ???????# #;;;;; ; ; ????????? | | ########+#;;;;; ; ; ????????? | | # ;; @ ; ; BB B????????? | | # ;; ; ; BB B????????? | | # ;; ; ; ????????? | | # ;;;;;;;;;;;;;;;;;; ;"""""""?????????? | | # """"""" ; ; !!! ; ;"???????????????? | | # """"""" h; ; !!! ; ;"???????????????? | | # h; ; !! [ ; ;"???????????????? | | # ; ; ; ; ??????????????? | | # ; ; ; ; "?????????????? | | # ; ; ; ; "?????????????? | | # # ; ; ; "?????????????? | | # ## ; ; ; "?????????????? | | ######++######??# ;;;;;+;;;;; ; ??????????????? | | ##### ##########;;;; ? ; #????????????????? | | ????????????????????? ? ###???????????????????? | | ??????????????????????? Y? ??????????????????????? | | ?????????????????????????????????????????????????? | | ?????????????????????????????????????????????????? | | ?????????????????????????????????????????????????? | | ?????????????????????????????????????????????????? | | ?????????????????????????????????????????????????? | | ?????????????????????????????????????????????????? | | ?????????????????????????????????????????????????? | | ?????????????????????????????????????????????????? | | ?????????????????????????????????????????????????? | +----------------------------------------------------+ Best States ------------- Heat Dissipation 104 Coolant Potential 100 Energy Generation 63 Energy Capacity 1080 Matter Stores 300 Matter Capacity 300 Sight Range 16 Robot Scan Range 18 Terrain Scan Range 20 Terrain Scan Density 1210 Jamming Range 16 Power Amplification 30 EM Shielding 4 Armor Coverage 1025 Resistance: KI 30 Resistance: TH 30 Weapon Shielding 66 Point Defense Rating 160 Phase Shifting 10 Evasion (%) 68 Targeting Accuracy 10 Target Analysis 12 Core Analysis 6 Recoil Reduction 4 Particle Charging 25 Salvage Targeting 4 Offensive Hacking 24 Defensive Hacking 21 Item Schematics ----------------- Imp. Salvage Targeting Computer | -9/Recycling | Hacked Barrage Gun | -6/Zion | Free Phasing Sabre | -6/Zion | Free Assault Drone Bay | -5/Zhirov | Free Exp. Heat Sink | -5/Zhirov | Free Exp. Optical Array | -5/Zhirov | Free Imp. Arc Thrower | -5/Zhirov | Free Robot Schematics ------------------ None Fabricated ------------ B-74 Champion | x3 | -2/Research | Preloaded Quantum Reactor | x2 | -1/Access | Preloaded Alien Tech Used ----------------- Integrated Dissipator Transdimensional Reconstructor Dimensional Node Initializer Sigix Broadsword Core Stripper Subatomic Replicator High-powered Transdimensional Reconstructor Terrabomb Achievements -------------- Revolutionary Research Challenges ------------ None Game ------ Seed TiamatCombatCleaver Manual? 0 Play Time 04:22:16 Cumulative 248.7 hours Start 2024.09.09 @ 18:09:15 End 2024.09.10 @ 01:08:02 Sessions 1 Manual Loads 0 Difficulty Rogue Special Mode None Game No. 209 Rogue 209 Adventurer 0 Explorer 0 Win Type - Total 1 Types 0/0/0/1/0/0/0/0/0 Lore% 67 Gallery% 75 Achievement% 56 Wizard Run 0 Options --------- Layout 2 ASCII 0 Keyboard 1 Movement Vi Keybinds 0 Fullscreen 1 Font 32/SmallcapsGlow Map View 77x44 Zoom Use 0% Tactical HUD 1 Map Filters NONE Filters NONE Steam 1 RUN: c71d1b74-0731-4660-b481-9971b1081121